Cogmind - Beta 13 @@@ ROGUE MODE // 2024.06.25 @ 19:31:34 Player: Edstelm Result: Destroyed by 44-2PO(R) with Subdweller Machine Gun Performance ------------- Evolutions (0) 0 Regions Visited (2) 400 Robots Destroyed (9) 45 Value Destroyed (192) 192 Prototype IDs (2) 40 Alien Tech Used (0) 0 Bonus (0) 0 TOTAL SCORE: 677 Bonus ------- None Cogmind --------- Core Integrity 0/250 Matter 282/300 Energy 100/100 System Corruption 0% Temperature Cool (0) Movement Treading (260) Ox1 Location -10/Subcaves Parts ------- > --- POWER (1) -------- (None) > --- PROPULSION (2) --- Spiked Treads > --- UTILITY (2) ------ Large Storage Unit Signal Interpreter > --- WEAPON (2) ------- Light Assault Rifle Light Assault Rifle > --- INVENTORY (15) --- Light Treads Light Treads Light Treads Aluminum Leg Aluminum Leg Aluminum Leg Small Storage Unit Large Storage Unit Subdweller Optics Seismic Detector Subdweller Beam Cannon Peak State ------------ > --- POWER ------------ Ion Engine > --- PROPULSION ------- Light Treads Light Treads > --- UTILITY ---------- Large Storage Unit Signal Interpreter > --- WEAPON ----------- Small Laser Light Assault Rifle > --- INVENTORY -------- Light Ion Engine Light Treads Light Treads Aluminum Leg Aluminum Leg Aluminum Leg Small Storage Unit Large Storage Unit Seismic Detector Light Assault Rifle [Rating: 8] Favorites ----------- Power Ion Engine Engine Ion Engine Propulsion Aluminum Leg Treads Light Treads Leg Aluminum Leg Utility Small Storage Unit Device Seismic Detector Storage Small Storage Unit Processor Signal Interpreter Weapon Light Assault Rifle Energy Gun Small Laser Ballistic Gun Light Assault Rifle Build | -11 -10 -10 ------- Run | Yrd Mat Sub Slots Evolved . | . . . Power . | . . . Propulsion . | . . . Utility . | . . . Weapon . | . . . Parts Attached 16 | 7 6 3 Power 2 | 1 . 1 Engine 2 | 1 . 1 Core . | . . . Reactor . | . . . Propulsion 5 | 2 2 1 Treads 3 | . 2 1 Leg 2 | 2 . . Wheel . | . . . Hover . | . . . Flight . | . . . Utility 4 | 2 2 . Device 1 | 1 . . Storage 2 | 1 1 . Processor 1 | . 1 . Hackware . | . . . Protection . | . . . Artifact . | . . . Weapon 5 | 2 2 1 Energy Gun 1 | . 1 . Energy Cannon . | . . . Ballistic Gun 4 | 2 1 1 Ballistic Cannon . | . . . Launcher . | . . . Special Weapon . | . . . Impact Weapon . | . . . Slashing Weapon . | . . . Piercing Weapon . | . . . Special Melee Weapon . | . . . Unidentified Prototypes . | . . . Parts Lost 5 | . 1 4 Power 2 | . . 2 Propulsion 1 | . . 1 Utility . | . . . Weapon 2 | . 1 1 Highest Loss Streak 4 | . 1 4 To Critical Strikes . | . . . Average Slot Usage (%) 98 | . 100 96 Engine 13 | . 14 11 Treads 11 | . 2 27 Leg 16 | . 25 . Device 6 | . 9 . Storage 14 | . 14 14 Processor 8 | . 4 14 Energy Gun 8 | . 5 12 Ballistic Gun 19 | . 22 15 Naked Turns . | . . . Heaviest Build 27 | 14 27 27 Greatest Support 40 | 20 40 40 Greatest Overweight (x) 1 | 1 . . Average Overweight (x) . | . . . Largest Inventory Capacity 15 | 8 15 15 Average Capacity 10 | 7 8 15 Most Carried 11 | 6 10 11 Average Carried 7 | 4 7 9 Final Capacity 15 | 8 15 15 Final Carried 11 | 6 10 11 Class Distribution -------------------- 100% | Mutant Dominant Class ---------------- Mutant | -10/Materials Mutant | -10/Subcaves Resources | -11 -10 -10 ----------- Run | Yrd Mat Sub Matter Collected 452 | 242 162 48 Remotely . | . . . Salvage Created 250 | 45 132 73 Parts 19 | 5 12 2 Haulers Intercepted . | . . . Recyclers Shooed . | . . . Parts Field Recycled . | . . . Retrieved Matter . | . . . Parts Self-Destructed 9 | . . 9 Prevented . | . . . Kills | -11 -10 -10 ------- Run | Yrd Mat Sub Combat Hostiles Destroyed 7 | . 5 2 Guns 7 | . 5 2 Classes Destroyed 4 | 1 2 1 Tunneler 2 | 2 . . Swarmer 3 | . 3 . Grunt 2 | . 2 . Subdweller 2 | . . 2 Best Kill Streak 2 | 2 2 1 Combat Bots Only 2 | . 2 1 Max Kills in Single Turn 1 | 1 1 1 Gunslinging . | . . . Exploded . | . . . Melee . | . . . Uniques/NPCs Destroyed . | . . . Combat | -11 -10 -10 -------- Run | Yrd Mat Sub Hostile Shots Fired 66 | . 43 23 Missed 12 | . 7 5 Damage Taken 946 | . 329 617 Core 268 | . 120 148 Absorbed by Shields . | . . . Core Remaining (%) 100 | 100 . . Volleys Fired 44 | 8 22 14 Largest 2 | 2 2 2 Hottest 60 | 40 60 60 Shots Fired 88 | 16 44 28 Gun 88 | 16 44 28 Cannon . | . . . Launcher . | . . . Special . | . . . Kinetic 77 | 16 43 18 Thermal 11 | . 1 10 Explosive . | . . . Electromagnetic . | . . . Robot Hit Streak 27 | 5 7 27 Robot Miss Streak 2 | 2 2 1 Penetration Max . | . . . Secondary Targets 4 | . 3 1 Max Gunslinging Chain 1 | . 1 1 Shots Hit Robots 63 | 9 28 26 Core Hits 20 | 4 9 7 Critical Kills . | . . . Critical Parts Destroyed . | . . . Critical Strikes . | . . . Melee Attacks . | . . . Impact . | . . . Slashing . | . . . Piercing . | . . . Sneak Attacks . | . . . Combat Hostiles . | . . . Follow-up Attacks . | . . . Damage Inflicted 641 | 109 294 238 Guns 641 | 109 294 238 Cannons . | . . . Explosions . | . . . Melee . | . . . Ramming . | . . . Kinetic 522 | 109 283 130 Thermal 119 | . 11 108 Explosive . | . . . Electromagnetic . | . . . Impact . | . . . Slashing . | . . . Piercing . | . . . Highest Corruption . | . . . Average Corruption . | . . . Corruption Purged . | . . . Corruption Blocked . | . . . Overload Shots . | . . . Overflow Damage . | . . . Projectiles . | . . . Explosions . | . . . Melee . | . . . Knockbacks . | . . . Impact . | . . . Kinetic . | . . . Secondary . | . . . Self-Inflicted Damage . | . . . Shots . | . . . Rammed . | . . . Targets Rammed . | . . . Kicked . | . . . Crushed . | . . . Highest Temperature 20 | . 20 . Average Temperature 10 | . 10 . Received Heat Transfer 144 | . 78 66 Siege Activations . | . . . Robots Corrupted . | . . . Combat Hostiles . | . . . Parts Fried . | . . . Impact Corruptions . | . . . Robots Melted . | . . . Combat Hostiles . | . . . Parts Melted . | . . . Heat Transferred 275 | . 25 250 Parts Sabotaged . | . . . Parts Stolen . | . . . Parts Stripped . | . . . Power Chain Reactions . | . . . Alert | -11 -10 -10 ------- Run | Yrd Mat Sub Peak Influence 139 | 10 139 . Initial 6 | . 6 . Average 55 | 2 70 . Maximum Alert Level . | . . . Low Security (%) 100 | 100 100 . Level 1 . | . . . Level 2 . | . . . Level 3 . | . . . Level 4 . | . . . Level 5 . | . . . High Security . | . . . Max Security . | . . . Squads Dispatched 2 | . 2 . Investigation 2 | . 2 . Extermination . | . . . Reinforcement . | . . . Assault . | . . . Garrison . | . . . Intercept . | . . . Searches Triggered . | . . . Construction Impeded . | . . . Haulers Reinforced . | . . . Active Scanning Responses . | . . . Cargo Convoy Interrupts . | . . . Stealth | -11 -10 -10 --------- Run | Yrd Mat Sub Distress Signals 1 | . 1 . Communications Jammed . | . . . Distress Signals . | . . . Times Spotted 12 | . 7 5 Peak Tracking Total 4 | . 4 3 Tactical Retreats 1 | . 1 . Traps | -11 -10 -10 ------- Run | Yrd Mat Sub Traps Triggered 2 | . 1 1 Indirectly . | . . . Trap Hack Attempts . | . . . Triggered . | . . . Disarmed . | . . . Reprogrammed . | . . . Reused . | . . . Traps Extracted . | . . . Installed . | . . . Triggered . | . . . Machines | -11 -10 -10 ---------- Run | Yrd Mat Sub Machines Disabled . | . . . Max in Single Turn . | . . . Machines Repaired . | . . . Machines Dismantled . | . . . Machines Sabotaged . | . . . Overloaded Fab Kills . | . . . Hacking | -11 -10 -10 --------- Run | Yrd Mat Sub Machines Accessed 4 | . 4 . Terminals 4 | . 4 . Fabricators . | . . . Repair Stations . | . . . Recycling Units . | . . . Scanalyzers . | . . . Garrison Access . | . . . Total Hacks 18 | . 18 . Successful 7 | . 7 . Failed 11 | . 11 . Catastrophic 1 | . 1 . Database Lockouts . | . . . Manual 14 | . 14 . Terminals 18 | . 18 . Fabricators . | . . . Repair Stations . | . . . Recycling Units . | . . . Scanalyzers . | . . . Garrison Access . | . . . Terminal Hacks 5 | . 5 . Prototype ID Bank 1 | . 1 . Emergency Access Points 1 | . 1 . Locate Traps 1 | . 1 . Recall Investigation 1 | . 1 . Hauler Manifests 1 | . 1 . Fabricator Hacks . | . . . Repair Station Hacks . | . . . Recycling Unit Hacks . | . . . Scanalyzer . | . . . Garrison Access Hacks . | . . . Unauthorized Hacks 2 | . 2 . Terminals 2 | . 2 . Botnet 2 | . 2 . Fabricators . | . . . Repair Stations . | . . . Recycling Units . | . . . Scanalyzers . | . . . Garrison Access . | . . . Data Cores Recovered . | . . . Used . | . . . Hacking Detections 4 | . 4 . Full Trace Events 1 | . 1 . Feedback Events . | . . . Feedback Blocked . | . . . Robot Schematics Acquired . | . . . Robots Built . | . . . Authchips . | . . . Time . | . . . Total Robot Build Rating . | . . . Part Schematics Acquired . | . . . Parts Built . | . . . Authchips . | . . . Time . | . . . Total Part Build Rating . | . . . Parts Repaired . | . . . Time . | . . . Parts Recycled . | . . . Recycled Matter . | . . . Retrieved Matter . | . . . Retrieved Components . | . . . Parts Scanalyzed . | . . . Part Schematics Acquired . | . . . Parts Damaged . | . . . Bothacking | -11 -10 -10 ------------ Run | Yrd Mat Sub Used RIF Installer . | . . . Robots Hacked . | . . . Non-combat . | . . . Combat . | . . . Robot Hacks Applied . | . . . Relay Couplers Released . | . . . Fabnet Peak Effective % . | . . . Robots Rewired . | . . . Allies Hacked . | . . . Hacks Repelled . | . . . Allies | -11 -10 -10 -------- Run | Yrd Mat Sub Total Allies . | . . . Largest Group . | . . . Highest-Rated Group . | . . . Highest-Rated Ally . | . . . Total Orders . | . . . Ally Attacks . | . . . Total Damage . | . . . Kills . | . . . Allies Corrupted . | . . . Allies Melted . | . . . Intel | -11 -10 -10 ------- Run | Yrd Mat Sub Robot Analysis Total . | . . . Derelict Logs Recovered . | . . . Drone Launches . | . . . Drone Recoveries . | . . . Exploration | -11 -10 -10 ------------- Run | Yrd Mat Sub Turns Passed 741 | 112 395 234 Spaces Moved 436 | 65 252 119 Core 9 | 9 . . Treads 136 | . 17 119 Legs 291 | 56 235 . Wheels . | . . . Hover . | . . . Flight . | . . . Fastest Speed 50 | 50 120 160 Average Speed 131 | 114 122 160 Slowest Speed 160 | 120 160 160 Overloaded Moves . | . . . Propulsion Burnouts . | . . . Robots Hopped . | . . . Cave-ins Triggered . | . . . Exploration Rate (%) 19 | 5 41 12 Regions Visited 2 Branch Regions 1 Pre-discovered Areas . | . . . Known Exits Taken 1 | . 1 . Unknown Exits Taken 1 | 1 . . Scrap Searched . | . . . Spaces Dug . | . . . Terrain Destroyed . | . . . Melee . | . . . Projectile . | . . . AOE . | . . . Terrain Rammed . | . . . Walls Destroyed . | . . . Machines Disabled . | . . . Actions | -11 -10 -10 --------- Run | Yrd Mat Sub Total 522 | 85 299 138 Wait 7 | . 7 . Move 434 | 64 251 119 Hop . | . . . Pick Up 14 | 6 6 2 Fast Attach 9 | 7 2 . Attach 3 | . 1 2 Detach 2 | . 2 . Swap 4 | . 3 1 Drop 5 | . 5 . Fire 44 | 8 22 14 Melee . | . . . Ram . | . . . Kick . | . . . Crush . | . . . Escape Stasis . | . . . Rewire . | . . . Trap . | . . . Miscellaneous . | . . . Route ------- -11/Scrapyard -10/Materials (discovered 4 exits: *Mat x2 / *Min / *Sub) -10/Subcaves History --------- Turn | Location | Event 11 | -11/Scrapyard | Discovered new exit (range 15) 113 | -11/Scrapyard | Entered Materials 159 | -10/Materials | Discovered new exit (range 14) 209 | -10/Materials | Discovered new exit (range 16) 301 | -10/Materials | Build established: Mutant 378 | -10/Materials | Discovered new exit (range 5) 384 | -10/Materials | Identified exit to Materials 426 | -10/Materials | Identified exit to Mines 504 | -10/Materials | Discovered new exit (range 2) 506 | -10/Materials | Identified exit to Subcaves 508 | -10/Materials | Entered Subcaves 681 | -10/Subcaves | Ambushed by Subdweller buried in earth 682 | -10/Subcaves | Core integrity fell below 50% 683 | -10/Subcaves | Ambushed by Subdweller buried in earth 735 | -10/Subcaves | Ambushed by Subdweller buried in earth 735 | -10/Subcaves | Ambushed by Subdweller buried in earth 736 | -10/Subcaves | Core integrity fell below 20% 742 | -10/Subcaves | Destroyed by 44-2PO(R) with Subdweller Machine Gun Last Messages --------------- 00681_ Ion Engine destroyed. 00682_ 7Q-5GS(R): "ARGHSUB!" 00684_ 6P-VAN(R): "FREEEEDUMB!" 00684_ 7Q-5GS(R) destroyed. 00684_ Switching to secondary target: 6P-VAN(R). 00687_ 2G-ULO(O) collects matter. 00697_ 2G-ULO(O) puts together Sub. Beam Cannon. 00697_ Subatomizers dissect the Sub. Optics. 00708_ Lgt. Ion Engine destroyed. 00709_ Subatomizers dissect the Sub. Optics. 00709_ 6P-VAN(R) destroyed. 00713_ Acquired Sub. Optics. 00714_ Acquired 33 matter. 00718_ Sml. Laser destroyed. 00719_ Subatomizers dissect the Sub. Shrapnel Launcher. 00725_ Acquired Sub. Beam Cannon. 00735_ Lgt. Treads destroyed. 00736_ OZ-M9P(R): "ARGHSUB!" 00736_ 44-2PO(R): "ARGHSUB!" 00742_ Subatomizers dissect the Sub. Shrapnel Launcher. Map ----- +----------------------------------------------------+ | ?????????????????????????????????????????????????? | | ?????????????????????????????????????????????????? | | ?????????????????????????????????????????????????? | | ?????????????????????????????????????????????????? | | ?????????????????????????????????????????????????? | | ?????????????????????????????????????????????????? | | ?????????????????????????????????????????????????? | | ?????????????????????????????????????????????????? | | ?????????????????????????????????????????????????? | | ?????????????????????????????????????????????????? | | ?????????????????????????????????????????????????? | | ????????????????????? ??????????????????????????? | | ?????????????????? ??????????????????????????? | | ???????????????? ?????????????????????????#? | | ????????????????? ??????????????????????? ? | | ?????????????????? ??????????????????????? ?? | | ?????????????????? ??????????????????????? ?? | | ??????????????????? ????????##??#?????????" ?? | | ???????????????????? ####???? ## ????????? #?? | | ????????????????????# #???? ????????? #?? | | ????????????????????? ##??? ^ %?????????? ### | | ?????????????????????# ###? #????????? | | ?????????????????????## ; #? ##???????? | | ?????????????????????#;; R ;#?# ##??????? | | ????????????????????## ####^ ####??## # | | ????????????????????# @ ;R ## #### # | | ????????????????????# R ## ## #? | | ????????????????????# ### ###? | | ????????????????????#; ## ##??? | | ????????????????????# # ##???? | | ????????????????????#;; ; # ##????? | | ????????????????????##### ] # #?????? | | ????????????????????????# #?????? | | ????????????????????????# ; #########?????? | | ????????????????????????# ### ##?????????????? | | ????????????????????????######## #?????????????? | | ??????????????????????????????# ##?????????????? | | ??????????????????????????????## ##?????????????? | | ???????????????????????????????# ##????????????? | | ???????????????????????????????# #????????????? | | ??????????????????????????????## ##???????????? | | ?????????????????????????????## ##??????????? | | ?????????????????????????????# ##?##??????? | | ?????????????????????????????# ## ##????? | | ????????????????????????????## #????? | | ??????????????????????????### #????? | | ?????????????????????????## ##????? | | ????????????????????????## ## ##?????? | | ????????????????????????# ###? #??????? | | ???????????????????????## ##???? #??????? | +----------------------------------------------------+ Best States ------------- Heat Dissipation 25 Energy Generation 10 Energy Capacity 250 Matter Stores 295 Matter Capacity 300 Sight Range 16 Terrain Scan Density 10 Evasion (%) 55 Recoil Reduction 2 Item Schematics ----------------- None Robot Schematics ------------------ None Fabricated ------------ Nothing Alien Tech Used ----------------- None Achievements -------------- None Challenges ------------ None Game ------ Seed SegregatorStormEngine Manual? 0 Play Time 00:12:15 Cumulative 40.3 hours Start 2024.06.25 @ 19:21:14 End 2024.06.25 @ 19:31:34 Sessions 1 Manual Loads 0 Difficulty Rogue Special Mode None Game No. 14 Rogue 14 Adventurer 0 Explorer 0 Win Type - Total 0 Types 0/0/0/0/0/0/0/0/0 Lore% 25 Gallery% 34 Achievement% 27 Wizard Run 0 Options --------- Layout 0 ASCII 0 Keyboard 1 Movement Arrows Keybinds 0 Fullscreen 2 Font 36/Terminus++ Map View 76x50 Zoom Use 0% Tactical HUD 1 Map Filters NONE Filters NONE Steam 1 RUN: d3d4e4b0-7ca3-4739-abdb-8513c331b4f3